[Event "XIII Mediterranean Championship 2023"]
[Site "Castell-Platja d Aro"]
[Date "2023.11.11"]
[Round "9.2"]
[White "Asis Gargatagli, Hipolito"]
[Black "Ayats Llobera, Gerard"]
[Result "1/2-1/2"]
[ECO "B52"]
[WhiteElo "2511"]
[BlackElo "2442"]
[Annotator "RC"]
[PlyCount "29"]
[EventDate "2023.10.26"]
[EventType "swiss"]
[EventCountry "ESP"]
[SourceTitle "playchess.com"]
[Source "ChessBase"]
[SourceQuality "1"]
[TimeControl "5400+30"]

1. e4 {[%emt 0:02:32]} c5 {[%emt 0:06:16]} 2. Nf3 {[%emt 0:00:14]} d6 {[%emt 0:00:44]} 3. Bb5+ {[%emt 0:00:25]} Bd7 {[%emt 0:00:20]} 4. Bxd7+ {[%emt 0:00:16]} Qxd7 {[%emt 0:00:05]} 5. c4 {[%emt 0:00:16]} Nc6 {[%emt 0:00:12]} 6. O-O {[%emt 0:00:11]} g6 {[%emt 0:00:03]} 7. d4 {[%emt 0:00:04]} cxd4 {[%emt 0:00:03]} 8. Nxd4 {[%emt 0:00:06]} Bg7 {[%emt 0:00:03]} 9. Be3 {[%emt 0:00:16]} Nf6 {[%emt 0:00:05]} 10. f3 {[%emt 0:00:11]} O-O {[%emt 0:00:12]} 11. Nc3 {[%emt 0:00:05]} Rac8 {[%emt 0:00:07]} 12. b3 {[%emt 0:00:05]} Nxd4 {[%emt 0:00:12]} 13. Bxd4 {[%emt 0:00:06]} b6 {[%emt 0:00:26]} 14. Qd3 {[%emt 0:00:18]} Rfd8 {[%emt 0:00:11]} 15. Rfd1 {[%emt 0:00:12]} 1/2-1/2

[Event "XIII Mediterranean Championship 2023"]
[Site "Castell-Platja d Aro"]
[Date "2023.11.11"]
[Round "9.3"]
[White "Garriga Cazorla, Pere"]
[Black "Narciso Dublan, Marc"]
[Result "1/2-1/2"]
[ECO "E73"]
[WhiteElo "2459"]
[BlackElo "2401"]
[Annotator "RC"]
[PlyCount "72"]
[EventDate "2023.10.26"]
[EventType "swiss"]
[EventCountry "ESP"]
[SourceTitle "playchess.com"]
[Source "ChessBase"]
[SourceQuality "1"]
[TimeControl "5400+30"]

1. d4 {[%emt 0:03:35]} Nf6 {[%emt 0:00:31]} 2. c4 {[%emt 0:00:10]} g6 {[%emt 0:00:26]} 3. Nc3 {[%emt 0:00:02]} Bg7 {[%emt 0:00:22]} 4. e4 {[%emt 0:00:05]} d6 {[%emt 0:00:14]} 5. Be2 {[%emt 0:00:03]} O-O {[%emt 0:00:22]} 6. Be3 {[%emt 0:00:03]} e5 {[%emt 0:00:42]} 7. d5 {[%emt 0:01:00]} Na6 {[%emt 0:00:39]} 8. h4 {[%emt 0:00:11]} Nc5 {[%emt 0:03:52]} 9. Qc2 {[%emt 0:00:33]} c6 {[%emt 0:03:14]} 10. h5 {[%emt 0:12:38]} cxd5 {[%emt 0:00:55]} 11. cxd5 {[%emt 0:00:39]} Bd7 {[%emt 0:06:53]} 12. b4 {[%emt 0:23:14]} Na6 {[%emt 0:03:09]} 13. b5 {[%emt 0:01:24]} Nc5 {[%emt 0:07:22]} 14. Bxc5 {[%emt 0:04:27]} dxc5 {[%emt 0:00:07]} 15. h6 {[%emt 0:00:02]} Bh8 {[%emt 0:00:30]} 16. Rd1 {[%emt 0:00:09]} a6 {[%emt 0:06:48]} 17. a4 {[%emt 0:11:41]} Qa5 {[%emt 0:04:45]} 18. Kf1 {[%emt 0:01:11]} c4 {[%emt 0:00:32]} 19. Nf3 {[%emt 0:07:43]} axb5 {[%emt 0:01:03]} 20. axb5 {[%emt 0:01:46]} Bxb5 {[%emt 0:12:55]} 21. Nxb5 {[%emt 0:01:25]} Qxb5 {[%emt 0:00:08]} 22. Nxe5 {[%emt 0:00:44]} Qa4 {[%emt 0:08:55]} 23. Qxa4 {[%emt 0:06:28]} Rxa4 {[%emt 0:00:05]} 24. Nxc4 {[%emt 0:00:07]} Nxe4 {[%emt 0:00:27]} 25. Ne3 {[%emt 0:07:03]} Nd6 {[%emt 0:19:45]} 26. g3 {[%emt 0:03:33]} Re8 {[%emt 0:05:57]} 27. Kg2 {[%emt 0:04:21]} b5 {[%emt 0:04:54]} 28. Kf3 {[%emt 0:02:54]} Bd4 {[%emt 0:02:45]} 29. Rd3 {[%emt 0:02:03]} Kf8 {[%emt 0:02:51]} 30. Rc1 {[%emt 0:01:19]} Bxe3 {[%emt 0:00:43]} 31. Rxe3 {[%emt 0:00:03]} Rxe3+ {[%emt 0:01:44]} 32. Kxe3 {[%emt 0:00:02]} Nf5+ {[%emt 0:00:32]} 33. Kf3 {[%emt 0:00:21]} Nd4+ {[%emt 0:00:57]} 34. Ke3 {[%emt 0:00:15]} Nf5+ {[%emt 0:00:25]} 35. Kf3 {[%emt 0:00:01]} Nd4+ {[%emt 0:00:43]} 36. Ke3 {[%emt 0:00:06]} Nf5+ {[%emt 0:00:28]} 1/2-1/2

[Event "XIII Mediterranean Championship 2023"]
[Site "Castell-Platja d Aro"]
[Date "2023.11.11"]
[Round "9.4"]
[White "Alexakis, Dimitris"]
[Black "Lazaro Pujol, Abel"]
[Result "1-0"]
[ECO "C78"]
[WhiteElo "2458"]
[BlackElo "2289"]
[Annotator "RC"]
[PlyCount "73"]
[EventDate "2023.10.26"]
[EventType "swiss"]
[EventCountry "ESP"]
[SourceTitle "playchess.com"]
[Source "ChessBase"]
[SourceQuality "1"]
[TimeControl "5400+30"]

1. e4 {[%emt 0:09:32]} e5 {[%emt 0:00:16]} 2. Nf3 {[%emt 0:00:11]} Nc6 {[%emt 0:00:25]} 3. Bb5 {[%emt 0:00:05]} a6 {[%emt 0:00:20]} 4. Ba4 {[%emt 0:00:05]} Nf6 {[%emt 0:00:29]} 5. O-O {[%emt 0:00:09]} b5 {[%emt 0:00:18]} 6. Bb3 {[%emt 0:00:06]} Bc5 {[%emt 0:00:10]} 7. c3 {[%emt 0:00:15]} d6 {[%emt 0:00:07]} 8. a4 {[%emt 0:00:04]} Rb8 {[%emt 0:00:19]} 9. d4 {[%emt 0:02:10]} Bb6 {[%emt 0:00:24]} 10. a5 {[%emt 0:00:47]} Ba7 {[%emt 0:00:05]} 11. Be3 {[%emt 0:00:33]} Bg4 {[%emt 0:00:11]} 12. Nbd2 {[%emt 0:17:48]} O-O {[%emt 0:01:21]} 13. h3 {[%emt 0:02:39]} exd4 {[%emt 0:08:34]} 14. cxd4 {[%emt 0:00:20]} Bh5 {[%emt 0:00:09]} 15. Qc1 {[%emt 0:21:23]} Nb4 {[%emt 0:08:29]} 16. Qc3 {[%emt 0:08:27]} c5 {[%emt 0:01:37]} 17. dxc5 {[%emt 0:06:34]} dxc5 {[%emt 0:02:55]} 18. Rad1 {[%emt 0:00:07]} Qe8 {[%emt 0:11:39]} 19. Rfe1 {[%emt 0:11:26]} Rd8 {[%emt 0:13:23]} 20. Bxc5 {[%emt 0:00:54]} Bxc5 {[%emt 0:05:59]} 21. Qxc5 {[%emt 0:00:04]} Nd3 {[%emt 0:00:21]} 22. Qg5 {[%emt 0:05:59]} Nxe1 {[%emt 0:02:15]} 23. Rxe1 {[%emt 0:00:01]} h6 {[%emt 0:02:00]} 24. Qg3 {[%emt 0:00:08]} Qe7 {[%emt 0:04:35]} 25. e5 {[%emt 0:04:13]} Nh7 {[%emt 0:11:07]} 26. e6 {[%emt 0:00:58]} Kh8 {[%emt 0:02:48]} 27. exf7 {[%emt 0:01:38]} Qd6 {[%emt 0:02:39]} 28. Qxd6 {[%emt 0:01:25]} Rxd6 {[%emt 0:00:01]} 29. Ne4 {[%emt 0:00:57]} Rd3 {[%emt 0:06:35]} 30. Nc5 {[%emt 0:00:02]} Rd6 {[%emt 0:01:19]} 31. Ne5 {[%emt 0:01:08]} Ng5 {[%emt 0:06:54]} 32. Ned7 {[%emt 0:01:44]} Rxf7 {[%emt 0:01:48]} 33. Re8+ {[%emt 0:03:08]} Kh7 {[%emt 0:00:01]} 34. Nf8+ {[%emt 0:00:09]} Rxf8 {[%emt 0:03:01]} 35. Rxf8 {[%emt 0:00:02]} Bd1 {[%emt 0:01:18]} 36. Bg8+ {[%emt 0:00:10]} Kg6 {[%emt 0:01:38]} 37. f4 {[%emt 0:00:40]} 1-0

[Event "XIII Mediterranean Championship 2023"]
[Site "Castell-Platja d Aro"]
[Date "2023.11.11"]
[Round "9.5"]
[White "Martin Barcelo, Carles"]
[Black "Gilevych, Artem"]
[Result "0-1"]
[ECO "B13"]
[WhiteElo "2242"]
[BlackElo "2416"]
[Annotator "RC"]
[PlyCount "46"]
[EventDate "2023.10.26"]
[EventType "swiss"]
[EventCountry "ESP"]
[SourceTitle "playchess.com"]
[Source "ChessBase"]
[SourceQuality "1"]
[TimeControl "5400+30"]

1. e4 {[%emt 0:00:21]} c6 {[%emt 0:01:18]} 2. d4 {[%emt 0:00:51]} d5 {[%emt 0:00:06]} 3. exd5 {[%emt 0:01:38]} cxd5 {[%emt 0:00:06]} 4. Bd3 {[%emt 0:00:34]} Nc6 {[%emt 0:00:06]} 5. c3 {[%emt 0:00:05]} Qc7 {[%emt 0:00:08]} 6. Ne2 {[%emt 0:01:53]} Bg4 {[%emt 0:00:33]} 7. O-O {[%emt 0:00:27]} e6 {[%emt 0:00:40]} 8. Qe1 {[%emt 0:00:36]} Nf6 {[%emt 0:00:20]} 9. Bg5 {[%emt 0:02:56]} Bh5 {[%emt 0:01:01]} 10. f4 {[%emt 0:03:32]} Bxe2 {[%emt 0:00:09]} 11. Qxe2 {[%emt 0:00:27]} h6 {[%emt 0:00:05]} 12. Bh4 {[%emt 0:04:14]} Bd6 {[%emt 0:00:54]} 13. Bg3 {[%emt 0:00:51]} h5 {[%emt 0:06:23]} 14. Qf2 {[%emt 0:08:13]} h4 {[%emt 0:25:54]} 15. Bxh4 {[%emt 0:00:24]} Ng4 {[%emt 0:00:07]} 16. Qg3 {[%emt 0:06:04]} Nxh2 {[%emt 0:00:15]} 17. Kxh2 {[%emt 0:27:36]} Qe7 {[%emt 0:12:21]} 18. Kg1 {[%emt 0:02:24]} Rxh4 {[%emt 0:01:19]} 19. Nd2 {[%emt 0:09:16]} g5 {[%emt 0:02:50]} 20. Qxg5 {[%emt 0:02:02]} Bxf4 {[%emt 0:00:18]} 21. Qg8+ {[%emt 0:04:14]} Kd7 {[%emt 0:00:06]} 22. Qxa8 {[%emt 0:03:13]} Be3+ {[%emt 0:00:20]} 23. Rf2 {[%emt 0:00:05]} Rh1+ {[%emt 0:00:07]} 0-1

[Event "XIII Mediterranean Championship 2023"]
[Site "Castell-Platja d Aro"]
[Date "2023.11.11"]
[Round "9.6"]
[White "Domene Mulyukov, Alexander"]
[Black "Trepat Herranz, Joan"]
[Result "1/2-1/2"]
[ECO "A49"]
[WhiteElo "2198"]
[BlackElo "2385"]
[Annotator "RC"]
[PlyCount "136"]
[EventDate "2023.10.26"]
[EventType "swiss"]
[EventCountry "ESP"]
[SourceTitle "playchess.com"]
[Source "ChessBase"]
[SourceQuality "1"]
[TimeControl "5400+30"]

1. Nf3 {[%emt 0:01:21]} Nf6 {[%emt 0:03:29]} 2. g3 {[%emt 0:00:11]} g6 {[%emt 0:04:45]} 3. Bg2 {[%emt 0:00:28]} Bg7 {[%emt 0:00:09]} 4. O-O {[%emt 0:00:40]} O-O {[%emt 0:00:14]} 5. Re1 {[%emt 0:01:03]} d6 {[%emt 0:10:06]} 6. d4 {[%emt 0:05:25]} Nbd7 {[%emt 0:04:07]} 7. e4 {[%emt 0:03:35]} e5 {[%emt 0:00:24]} 8. c3 {[%emt 0:00:15]} Re8 {[%emt 0:01:30]} 9. Qc2 {[%emt 0:03:51]} c6 {[%emt 0:05:05]} 10. Nbd2 {[%emt 0:07:10]} Qc7 {[%emt 0:00:52]} 11. a4 {[%emt 0:05:01]} a5 {[%emt 0:11:05]} 12. Qb3 {[%emt 0:17:51]} Nb6 {[%emt 0:04:00]} 13. Bf1 {[%emt 0:08:34]} Be6 {[%emt 0:08:46]} 14. Qc2 {[%emt 0:00:17]} h6 {[%emt 0:00:57]} 15. b3 {[%emt 0:14:35]} Nfd7 {[%emt 0:16:19]} 16. Bb2 {[%emt 0:11:42]} Rad8 {[%emt 0:10:40]} 17. b4 {[%emt 0:01:16]} Ra8 {[%emt 0:00:34]} 18. h4 {[%emt 0:07:29]} Nf6 {[%emt 0:02:19]} 19. Nb3 {[%emt 0:05:24]} Bxb3 {[%emt 0:03:22]} 20. Qxb3 {[%emt 0:00:15]} exd4 {[%emt 0:00:05]} 21. bxa5 {[%emt 0:01:11]} Rxa5 {[%emt 0:02:24]} 22. cxd4 {[%emt 0:00:16]} Rxe4 {[%emt 0:06:02]} 23. Bc3 {[%emt 0:01:15]} Ra8 {[%emt 0:00:27]} 24. Bd3 {[%emt 0:00:18]} Rxe1+ {[%emt 0:00:17]} 25. Bxe1 {[%emt 0:00:10]} Nbd5 {[%emt 0:02:05]} 26. a5 {[%emt 0:00:54]} Re8 {[%emt 0:00:08]} 27. Kg2 {[%emt 0:01:56]} Re7 {[%emt 0:00:39]} 28. Bd2 {[%emt 0:00:25]} Ne4 {[%emt 0:01:02]} 29. Be1 {[%emt 0:00:47]} Qd7 {[%emt 0:00:31]} 30. Bc4 {[%emt 0:00:35]} Nef6 {[%emt 0:00:26]} 31. Nh2 {[%emt 0:01:16]} Qe6 {[%emt 0:01:20]} 32. Rb1 {[%emt 0:00:27]} Qe4+ {[%emt 0:00:23]} 33. Nf3 {[%emt 0:00:22]} Qg4 {[%emt 0:00:14]} 34. Bd2 {[%emt 0:00:25]} Qf5 {[%emt 0:01:44]} 35. Bd3 {[%emt 0:00:40]} Ne4 {[%emt 0:00:33]} 36. Bxe4 {[%emt 0:00:08]} Rxe4 {[%emt 0:00:49]} 37. Qxb7 {[%emt 0:00:17]} Re2 {[%emt 0:00:26]} 38. Re1 {[%emt 0:00:38]} Rxe1 {[%emt 0:00:34]} 39. Nxe1 {[%emt 0:00:43]} Bxd4 {[%emt 0:00:25]} 40. Nf3 {[%emt 0:00:08]} Qe4 {[%emt 0:00:36]} 41. Bxh6 {[%emt 0:00:37]} Ne7 {[%emt 0:00:35]} 42. Qb8+ {[%emt 0:01:02]} Kh7 {[%emt 0:00:11]} 43. Bf4 {[%emt 0:00:31]} Nf5 {[%emt 0:00:26]} 44. Qf8 {[%emt 0:00:33]} Qd5 {[%emt 0:00:11]} 45. a6 {[%emt 0:00:20]} Bg7 {[%emt 0:00:27]} 46. Qe8 {[%emt 0:00:26]} Nd4 {[%emt 0:00:13]} 47. Qe3 {[%emt 0:00:21]} c5 {[%emt 0:00:32]} 48. a7 {[%emt 0:00:26]} Qa8 {[%emt 0:00:52]} 49. Bxd6 {[%emt 0:00:32]} Nxf3 {[%emt 0:00:18]} 50. Qxf3 {[%emt 0:00:09]} Qxa7 {[%emt 0:00:03]} 51. Qd5 {[%emt 0:00:24]} Bd4 {[%emt 0:00:32]} 52. h5 {[%emt 0:00:40]} Qd7 {[%emt 0:01:21]} 53. Kf3 {[%emt 0:01:13]} Qe6 {[%emt 0:00:44]} 54. Qxe6 {[%emt 0:00:28]} fxe6 {[%emt 0:00:03]} 55. hxg6+ {[%emt 0:00:12]} Kxg6 {[%emt 0:00:05]} 56. Ke2 {[%emt 0:00:29]} c4 {[%emt 0:00:25]} 57. f3 {[%emt 0:00:19]} e5 {[%emt 0:00:33]} 58. Bb4 {[%emt 0:00:44]} Kf5 {[%emt 0:00:37]} 59. Bd2 {[%emt 0:00:14]} Kg6 {[%emt 0:00:54]} 60. Be3 {[%emt 0:00:58]} Kf5 {[%emt 0:00:15]} 61. g4+ {[%emt 0:00:22]} Kf6 {[%emt 0:00:51]} 62. Bd2 {[%emt 0:00:44]} Ke6 {[%emt 0:00:36]} 63. Kd1 {[%emt 0:00:16]} Kd5 {[%emt 0:00:31]} 64. Kc2 {[%emt 0:00:17]} e4 {[%emt 0:00:26]} 65. fxe4+ {[%emt 0:00:34]} Kxe4 {[%emt 0:00:06]} 66. Bc3 {[%emt 0:00:05]} Bxc3 {[%emt 0:00:05]} 67. Kxc3 {[%emt 0:00:05]} Kf4 {[%emt 0:00:03]} 68. Kxc4 {[%emt 0:00:07]} Kxg4 {[%emt 0:00:04]} 1/2-1/2

[Event "XIII Mediterranean Championship 2023"]
[Site "Castell-Platja d Aro"]
[Date "2023.11.11"]
[Round "9.8"]
[White "Jimenez Ruano, Adrian"]
[Black "Rojano Alfonso, Carlos"]
[Result "1/2-1/2"]
[ECO "E20"]
[WhiteElo "2281"]
[BlackElo "2207"]
[Annotator "RC"]
[PlyCount "119"]
[EventDate "2023.10.26"]
[EventType "swiss"]
[EventCountry "ESP"]
[SourceTitle "playchess.com"]
[Source "ChessBase"]
[SourceQuality "1"]
[TimeControl "5400+30"]

1. d4 {[%emt 0:04:41]} e6 {[%emt 0:01:16]} 2. c4 {[%emt 0:00:17]} Nf6 {[%emt 0:00:05]} 3. Nc3 {[%emt 0:00:21]} Bb4 {[%emt 0:00:11]} 4. f3 {[%emt 0:07:33]} c5 {[%emt 0:01:06]} 5. d5 {[%emt 0:00:12]} b5 {[%emt 0:03:18]} 6. e4 {[%emt 0:01:15]} d6 {[%emt 0:01:31]} 7. Nge2 {[%emt 0:00:07]} bxc4 {[%emt 0:00:37]} 8. Nf4 {[%emt 0:00:06]} g5 {[%emt 0:00:03]} 9. Nfe2 {[%emt 0:00:15]} exd5 {[%emt 0:00:06]} 10. exd5 {[%emt 0:00:30]} Qe7 {[%emt 0:00:06]} 11. Bxg5 {[%emt 0:00:47]} Nbd7 {[%emt 0:00:12]} 12. Qd2 {[%emt 0:04:46]} Bxc3 {[%emt 0:03:07]} 13. bxc3 {[%emt 0:03:41]} Rg8 {[%emt 0:00:08]} 14. h4 {[%emt 0:00:42]} h6 {[%emt 0:01:42]} 15. Bxh6 {[%emt 0:07:08]} Ne5 {[%emt 0:01:17]} 16. Kf2 {[%emt 0:10:02]} Nd3+ {[%emt 0:00:45]} 17. Kg1 {[%emt 0:00:08]} Rb8 {[%emt 0:00:10]} 18. Qd1 {[%emt 0:13:31]} Rg6 {[%emt 0:21:41]} 19. Bd2 {[%emt 0:00:38]} Qe5 {[%emt 0:05:39]} 20. h5 {[%emt 0:04:23]} Nxh5 {[%emt 0:04:20]} 21. Qa4+ {[%emt 0:00:39]} Ke7 {[%emt 0:03:42]} 22. Qxc4 {[%emt 0:01:10]} Nb2 {[%emt 0:02:14]} 23. Qh4+ {[%emt 0:01:38]} Qf6 {[%emt 0:04:24]} 24. Qxh5 {[%emt 0:03:26]} Nc4 {[%emt 0:01:03]} 25. Bf4 {[%emt 0:00:33]} Rb2 {[%emt 0:00:24]} 26. Qh4 {[%emt 0:01:48]} Bb7 {[%emt 0:00:06]} 27. Qxf6+ {[%emt 0:01:20]} Kxf6 {[%emt 0:00:06]} 28. Nc1 {[%emt 0:02:14]} Bxd5 {[%emt 0:00:41]} 29. Rh6 {[%emt 0:02:24]} Rxh6 {[%emt 0:02:55]} 30. Bxh6 {[%emt 0:00:01]} Na3 {[%emt 0:00:59]} 31. Nd3 {[%emt 0:06:16]} Rxa2 {[%emt 0:01:50]} 32. Rxa2 {[%emt 0:00:13]} Bxa2 {[%emt 0:00:05]} 33. Nb2 {[%emt 0:00:26]} a5 {[%emt 0:01:48]} 34. Kf2 {[%emt 0:13:20]} Bb3 {[%emt 0:04:09]} 35. Ke1 {[%emt 0:00:38]} a4 {[%emt 0:01:26]} 36. Kd2 {[%emt 0:03:51]} Nb1+ {[%emt 0:02:36]} 37. Kc1 {[%emt 0:00:01]} Nxc3 {[%emt 0:00:27]} 38. Bd2 {[%emt 0:00:02]} Nd5 {[%emt 0:01:21]} 39. Bc4 {[%emt 0:00:22]} Nb6 {[%emt 0:02:10]} 40. Bxb3 {[%emt 0:00:04]} axb3 {[%emt 0:00:03]} 41. Ba5 {[%emt 0:01:11]} Nd5 {[%emt 0:01:10]} 42. Nc4 {[%emt 0:03:49]} Ke6 {[%emt 0:01:54]} 43. Bd2 {[%emt 0:02:04]} Nf6 {[%emt 0:02:37]} 44. Na5 {[%emt 0:00:08]} Kd5 {[%emt 0:01:41]} 45. Nxb3 {[%emt 0:00:01]} c4 {[%emt 0:02:28]} 46. Na1 {[%emt 0:00:35]} Kd4 {[%emt 0:01:19]} 47. Bb4 {[%emt 0:03:05]} Ke3 {[%emt 0:01:06]} 48. Bxd6 {[%emt 0:00:19]} Kf2 {[%emt 0:00:07]} 49. Kd2 {[%emt 0:01:29]} Kxg2 {[%emt 0:01:50]} 50. Ke2 {[%emt 0:00:08]} Nd5 {[%emt 0:00:16]} 51. Nc2 {[%emt 0:00:14]} Nc3+ {[%emt 0:01:02]} 52. Ke3 {[%emt 0:01:07]} f5 {[%emt 0:02:55]} 53. f4 {[%emt 0:00:39]} Kg3 {[%emt 0:00:28]} 54. Na3 {[%emt 0:00:33]} Kg4 {[%emt 0:00:57]} 55. Nxc4 {[%emt 0:00:33]} Nd5+ {[%emt 0:00:13]} 56. Kd4 {[%emt 0:00:34]} Nxf4 {[%emt 0:00:13]} 57. Ne5+ {[%emt 0:00:29]} Kh5 {[%emt 0:00:35]} 58. Nf3 {[%emt 0:00:29]} Ng6 {[%emt 0:00:08]} 59. Ke3 {[%emt 0:00:29]} Kg4 {[%emt 0:00:15]} 60. Ne5+ {[%emt 0:00:19]} 1/2-1/2

[Event "XIII Mediterranean Championship 2023"]
[Site "Castell-Platja d Aro"]
[Date "2023.11.11"]
[Round "9.9"]
[White "Lever, Erwan"]
[Black "Ventura Bolet, Alexandre"]
[Result "1-0"]
[ECO "E94"]
[WhiteElo "2184"]
[BlackElo "2238"]
[Annotator "RC"]
[PlyCount "107"]
[EventDate "2023.10.26"]
[EventType "swiss"]
[EventCountry "ESP"]
[SourceTitle "playchess.com"]
[Source "ChessBase"]
[SourceQuality "1"]
[TimeControl "5400+30"]

1. d4 {[%emt 0:01:51]} Nf6 {[%emt 0:00:21]} 2. c4 {[%emt 0:00:08]} d6 {[%emt 0:00:15]} 3. Nf3 {[%emt 0:00:07]} g6 {[%emt 0:00:24]} 4. Nc3 {[%emt 0:00:05]} Nbd7 {[%emt 0:00:13]} 5. e4 {[%emt 0:00:06]} e5 {[%emt 0:00:12]} 6. Be2 {[%emt 0:00:10]} Bg7 {[%emt 0:00:31]} 7. O-O {[%emt 0:00:07]} O-O {[%emt 0:00:14]} 8. Qc2 {[%emt 0:00:05]} c6 {[%emt 0:02:21]} 9. d5 {[%emt 0:00:14]} c5 {[%emt 0:01:46]} 10. Bg5 {[%emt 0:00:11]} h6 {[%emt 0:02:06]} 11. Bd2 {[%emt 0:00:06]} Ne8 {[%emt 0:05:51]} 12. Rae1 {[%emt 0:00:15]} Ndf6 {[%emt 1:22:16]} 13. Kh1 {[%emt 0:02:12]} a6 {[%emt 0:00:00]} 14. a3 {[%emt 0:00:20]} Rb8 {[%emt 0:00:00]} 15. b4 {[%emt 0:00:27]} b6 {[%emt 0:00:00]} 16. Rb1 {[%emt 1:32:06]} Nh5 {[%emt 0:00:00]} 17. g3 {[%emt 0:00:30]} Bg4 {[%emt 0:00:00]} 18. Ng1 {[%emt 0:00:00]} Bxe2 {[%emt 0:00:00]} 19. Ngxe2 {[%emt 0:00:00]} f5 {[%emt 0:03:30]} 20. f3 {[%emt 0:01:30]} Qc8 {[%emt 0:00:30]} 21. Qd3 {[%emt 0:00:00]} f4 {[%emt 0:00:00]} 22. g4 {[%emt 0:00:00]} Nhf6 {[%emt 0:00:00]} 23. bxc5 {[%emt 0:00:00]} bxc5 {[%emt 0:00:00]} 24. Rxb8 {[%emt 0:00:00]} Qxb8 {[%emt 0:00:00]} 25. Rb1 {[%emt 0:00:00]} Qc8 {[%emt 0:00:00]} 26. Rb6 {[%emt 0:03:00]} h5 {[%emt 0:00:00]} 27. gxh5 {[%emt 0:00:00]} Nxh5 {[%emt 0:00:00]} 28. Ng1 {[%emt 0:01:00]} Nhf6 {[%emt 0:00:00]} 29. Qf1 {[%emt 0:00:00]} g5 {[%emt 0:04:30]} 30. h3 {[%emt 0:00:00]} Rf7 {[%emt 0:00:00]} 31. Qb1 {[%emt 0:00:00]} Bf8 {[%emt 0:00:00]} 32. Rb8 {[%emt 0:00:00]} Qd7 {[%emt 0:00:00]} 33. Qd1 {[%emt 0:00:00]} Rg7 {[%emt 0:00:00]} 34. Kg2 {[%emt 0:00:00]} g4 {[%emt 0:00:00]} 35. hxg4 {[%emt 0:03:30]} Nxg4 {[%emt 0:00:00]} 36. fxg4 {[%emt 0:00:00]} Rxg4+ {[%emt 0:00:00]} 37. Kf1 {[%emt 0:01:00]} Nf6 {[%emt 0:00:00]} 38. Be1 {[%emt 0:00:00]} Qh7 {[%emt 0:00:00]} 39. Qf3 {[%emt 0:00:00]} Qh5 {[%emt 0:00:00]} 40. Nh3 {[%emt 0:00:00]} Nh7 {[%emt 0:01:20]} 41. Rb2 {[%emt 0:00:00]} Nf6 {[%emt 0:01:55]} 42. Rg2 {[%emt 0:00:00]} Bg7 {[%emt 0:00:49]} 43. Rxg4 {[%emt 0:00:00]} Nxg4 {[%emt 0:00:22]} 44. Ke2 {[%emt 0:00:00]} Qg6 {[%emt 0:00:23]} 45. Kd3 {[%emt 0:00:00]} Ne3 {[%emt 0:01:53]} 46. Bd2 {[%emt 0:00:00]} Ng2 {[%emt 0:00:43]} 47. Nf2 {[%emt 0:00:00]} Qg3 {[%emt 0:00:54]} 48. Qxg3 {[%emt 0:00:00]} fxg3 {[%emt 0:00:02]} 49. Nh3 {[%emt 0:00:00]} Kf7 {[%emt 0:00:43]} 50. Ne2 {[%emt 0:00:00]} Nf4+ {[%emt 0:00:29]} 51. Nhxf4 {[%emt 0:00:00]} exf4 {[%emt 0:00:07]} 52. Bxf4 {[%emt 0:00:00]} g2 {[%emt 0:00:07]} 53. Bxd6 {[%emt 0:00:00]} Kg6 {[%emt 0:00:24]} 54. Bxc5 {[%emt 0:00:00]} 1-0

[Event "XIII Mediterranean Championship 2023"]
[Site "Castell-Platja d Aro"]
[Date "2023.11.11"]
[Round "9.10"]
[White "Eugene, Floryan"]
[Black "Guillo Longares, Cecilia"]
[Result "1-0"]
[ECO "B38"]
[WhiteElo "2426"]
[BlackElo "2065"]
[Annotator "RC"]
[PlyCount "69"]
[EventDate "2023.10.26"]
[EventType "swiss"]
[EventCountry "ESP"]
[SourceTitle "playchess.com"]
[Source "ChessBase"]
[SourceQuality "1"]
[TimeControl "5400+30"]

1. e4 {[%emt 0:12:46]} c5 {[%emt 0:00:01]} 2. Nf3 {[%emt 0:00:07]} Nc6 {[%emt 0:00:04]} 3. d4 {[%emt 0:00:05]} cxd4 {[%emt 0:00:04]} 4. Nxd4 {[%emt 0:00:04]} g6 {[%emt 0:00:04]} 5. c4 {[%emt 0:00:06]} Bg7 {[%emt 0:00:16]} 6. Be3 {[%emt 0:00:05]} Qb6 {[%emt 0:00:02]} 7. Nb3 {[%emt 0:00:06]} Qd8 {[%emt 0:00:04]} 8. Qd2 {[%emt 0:00:03]} Nf6 {[%emt 0:00:04]} 9. Nc3 {[%emt 0:00:04]} Ng4 {[%emt 0:00:03]} 10. Bf4 {[%emt 0:02:54]} d6 {[%emt 0:00:04]} 11. Be2 {[%emt 0:00:44]} a5 {[%emt 0:06:17]} 12. Bxg4 {[%emt 0:08:22]} Bxg4 {[%emt 0:00:08]} 13. Bh6 {[%emt 0:00:08]} O-O {[%emt 0:02:02]} 14. Bxg7 {[%emt 0:00:20]} Kxg7 {[%emt 0:00:02]} 15. Nd4 {[%emt 0:00:19]} Qb6 {[%emt 0:11:56]} 16. Ndb5 {[%emt 0:01:56]} a4 {[%emt 0:03:33]} 17. Nd5 {[%emt 0:01:49]} Qa5 {[%emt 0:02:50]} 18. Rc1 {[%emt 0:05:48]} Be6 {[%emt 0:03:56]} 19. Rc3 {[%emt 0:00:30]} Bxd5 {[%emt 0:08:39]} 20. exd5 {[%emt 0:00:59]} Ne5 {[%emt 0:00:34]} 21. Qd4 {[%emt 0:01:19]} Rfc8 {[%emt 0:04:42]} 22. O-O {[%emt 0:00:16]} Kg8 {[%emt 0:03:18]} 23. Rfc1 {[%emt 0:01:37]} Qb4 {[%emt 0:06:43]} 24. f4 {[%emt 0:02:04]} Ng4 {[%emt 0:01:11]} 25. h3 {[%emt 0:00:10]} Nf6 {[%emt 0:03:33]} 26. Re3 {[%emt 0:00:47]} Kf8 {[%emt 0:09:35]} 27. Kh2 {[%emt 0:03:28]} Ra5 {[%emt 0:06:28]} 28. Rxe7 {[%emt 0:23:29]} Kxe7 {[%emt 0:01:11]} 29. a3 {[%emt 0:00:04]} Rxc4 {[%emt 0:06:45]} 30. axb4 {[%emt 0:00:50]} Rxd4 {[%emt 0:00:13]} 31. Rc7+ {[%emt 0:01:09]} Kd8 {[%emt 0:17:28]} 32. bxa5 {[%emt 0:00:05]} Nxd5 {[%emt 0:00:56]} 33. Rxb7 {[%emt 0:00:18]} Rb4 {[%emt 0:00:33]} 34. a6 {[%emt 0:00:15]} Nc7 {[%emt 0:00:45]} 35. a7 {[%emt 0:01:59]} 1-0